Cogmind - Beta 13 @@@ ROGUE MODE // 2024.03.31 @ 20:35:36 Player: ANickel Result: Destroyed by 8R-AWN with 8R-AWN's Boregun Performance ------------- Evolutions (0) 0 Regions Visited (3) 600 Robots Destroyed (19) 95 Value Destroyed (410) 410 Prototype IDs (0) 0 Alien Tech Used (0) 0 Bonus (-373) -373 TOTAL SCORE: 732 Bonus ------- Friendly Fire -373 Cogmind --------- Core Integrity 0/250 Matter 105/300 Energy 100/100 System Corruption 0% Temperature Cool (0) Movement Core (3350) Ox66 Location -10/Exiles Parts ------- > --- POWER (1) -------- (None) > --- PROPULSION (2) --- (None) > --- UTILITY (2) ------ Humpback > --- WEAPON (2) ------- (None) > --- INVENTORY (35) --- Ion Engine Ion Engine Aluminum Leg Small Laser Assault Rifle Peak State ------------ > --- POWER ------------ Ion Engine > --- PROPULSION ------- Aluminum Leg Aluminum Leg > --- UTILITY ---------- Small Storage Unit Utility Shielding > --- WEAPON ----------- Grenade Launcher Grenade Launcher > --- INVENTORY -------- Ion Engine Aluminum Leg Small Laser Assault Rifle Grenade Launcher [Rating: 7] Favorites ----------- Power Ion Engine Engine Ion Engine Propulsion Aluminum Leg Leg Aluminum Leg Utility Small Storage Unit Storage Small Storage Unit Processor Targeting Computer Hackware EX Chip 1 Protection Utility Shielding Weapon Grenade Launcher Energy Gun Small Laser Ballistic Gun Assault Rifle Launcher Grenade Launcher Build | -11 -10 -10 -10 ------- Run | Yrd Mat Min Exi Slots Evolved . | . . . . Power . | . . . . Propulsion . | . . . . Utility . | . . . . Weapon . | . . . . Parts Attached 14 | 6 4 2 2 Power 2 | 1 . 1 . Engine 2 | 1 . 1 . Core . | . . . . Reactor . | . . . . Propulsion 2 | 2 . . . Treads . | . . . . Leg 2 | 2 . . . Wheel . | . . . . Hover . | . . . . Flight . | . . . . Utility 5 | 1 2 . 2 Device . | . . . . Storage 2 | 1 . . 1 Processor 1 | . 1 . . Hackware 1 | . . . 1 Protection 1 | . 1 . . Artifact . | . . . . Weapon 5 | 2 2 1 . Energy Gun 1 | 1 . . . Energy Cannon . | . . . . Ballistic Gun 1 | 1 . . . Ballistic Cannon . | . . . . Launcher 3 | . 2 1 . Special Weapon . | . . . . Impact Weapon . | . . . . Slashing Weapon . | . . . . Piercing Weapon . | . . . . Special Melee Weapon . | . . . . Unidentified Prototypes . | . . . . Parts Lost 5 | . . . 5 Power 1 | . . . 1 Propulsion 2 | . . . 2 Utility . | . . . . Weapon 2 | . . . 2 Highest Loss Streak 3 | . . . 3 To Critical Strikes 1 | . . . 1 Average Slot Usage (%) 86 | . 88 100 70 Engine 13 | . 14 14 11 Leg 26 | . 28 28 21 Storage 13 | . 14 14 11 Processor 6 | . . 14 9 Protection 1 | . 2 . . Ballistic Gun 2 | . 5 . . Launcher 21 | . 22 28 14 Naked Turns . | . . . . Heaviest Build 205 | 13 17 16 205 Greatest Support 20 | 20 20 20 20 Greatest Overweight (x) 66 | . . . 66 Average Overweight (x) . | . . . 1 Largest Inventory Capacity 35 | 8 8 8 35 Average Capacity 9 | 6 8 8 16 Most Carried 6 | 1 5 6 6 Average Carried 4 | . 4 5 5 Final Capacity 35 | 8 8 8 35 Final Carried 6 | 1 5 6 5 Class Distribution -------------------- 90% | Mutant 9% | Hauler-Mutant Dominant Class ---------------- Mutant | -10/Materials Mutant | -10/Mines Mutant | -10/Exiles Resources | -11 -10 -10 -10 ----------- Run | Yrd Mat Min Exi Matter Collected 427 | 269 54 104 . Remotely . | . . . . Salvage Created 379 | 111 150 104 14 Parts 32 | 8 11 12 1 Haulers Intercepted . | . . . . Recyclers Shooed 4 | . 2 2 . Parts Field Recycled . | . . . . Retrieved Matter . | . . . . Parts Self-Destructed . | . . . . Prevented . | . . . . Kills | -11 -10 -10 -10 ------- Run | Yrd Mat Min Exi Combat Hostiles Destroyed 19 | . 7 8 4 Guns 1 | . 1 . . AOE 18 | . 6 8 4 Classes Destroyed 6 | 2 3 . 1 Tunneler 1 | 1 . . . Recycler 1 | 1 . . . Watcher 1 | . 1 . . Swarmer 9 | . 3 6 . Grunt 6 | . 4 2 . Assembled 6 | . . . 6 Best Kill Streak 6 | 2 3 6 5 Combat Bots Only 6 | . 3 6 4 Max Kills in Single Turn 3 | 1 2 3 2 Gunslinging . | . . . . Exploded 3 | . 2 3 2 Melee . | . . . . Uniques/NPCs Destroyed 1 | . . . 1 EX-HEX (-10/Exiles) Combat | -11 -10 -10 -10 -------- Run | Yrd Mat Min Exi Hostile Shots Fired 70 | . 11 2 57 Missed 23 | . 4 1 18 Damage Taken 1071 | . 125 40 906 Core 261 | . 30 . 231 Absorbed by Shields . | . . . . Core Remaining (%) 100 | 100 . . . Volleys Fired 31 | 5 11 4 11 Largest 2 | 2 2 1 2 Hottest 60 | 60 60 30 60 Shots Fired 42 | 8 18 4 12 Gun 14 | 8 6 . . Cannon . | . . . . Launcher 28 | . 12 4 12 Special . | . . . . Kinetic 9 | 3 6 . . Thermal 5 | 5 . . . Explosive 28 | . 12 4 12 Electromagnetic . | . . . . Robot Hit Streak 5 | 2 5 . 5 Robot Miss Streak 4 | 1 3 4 1 Penetration Max . | . . . . Secondary Targets . | . . . . Shots Hit Robots 18 | 6 6 . 6 Core Hits 47 | 3 14 12 18 Critical Kills . | . . . . Critical Parts Destroyed . | . . . . Critical Strikes . | . . . . Melee Attacks . | . . . . Impact . | . . . . Slashing . | . . . . Piercing . | . . . . Sneak Attacks . | . . . . Combat Hostiles . | . . . . Follow-up Attacks . | . . . . Damage Inflicted 1541 | 71 496 392 582 Guns 108 | 71 37 . . Cannons . | . . . . Explosions 1433 | . 459 392 582 Melee . | . . . . Ramming . | . . . . Kinetic 65 | 28 37 . . Thermal 43 | 43 . . . Explosive 1433 | . 459 392 582 Electromagnetic . | . . . . Impact . | . . . . Slashing . | . . . . Piercing . | . . . . Highest Corruption . | . . . . Average Corruption . | . . . . Corruption Purged . | . . . . Corruption Blocked . | . . . . Overload Shots . | . . . . Overflow Damage 24 | . . . 24 Projectiles . | . . . . Explosions 24 | . . . 24 Melee . | . . . . Knockbacks . | . . . . Impact . | . . . . Kinetic . | . . . . Secondary . | . . . . Self-Inflicted Damage 168 | . 46 28 94 Shots 6 | . 2 1 3 Rammed . | . . . . Targets Rammed . | . . . . Kicked . | . . . . Crushed . | . . . . Highest Temperature 5 | . 5 1 . Average Temperature 2 | . 3 1 . Received Heat Transfer 36 | . 30 6 . Siege Activations . | . . . . Robots Corrupted . | . . . . Combat Hostiles . | . . . . Parts Fried . | . . . . Impact Corruptions . | . . . . Robots Melted . | . . . . Combat Hostiles . | . . . . Parts Melted . | . . . . Heat Transferred 100 | 100 . . . Parts Sabotaged . | . . . . Parts Stolen . | . . . . Parts Stripped . | . . . . Power Chain Reactions . | . . . . Alert | -11 -10 -10 -10 ------- Run | Yrd Mat Min Exi Peak Influence 393 | 10 393 374 . Initial 153 | . 6 153 . Average 201 | 6 174 344 . Maximum Alert Level 1 | . 1 1 . Low Security (%) 52 | 100 68 . . Level 1 47 | . 31 100 . Level 2 . | . . . . Level 3 . | . . . . Level 4 . | . . . . Level 5 . | . . . . High Security . | . . . . Max Security . | . . . . Squads Dispatched 1 | . 1 . . Investigation 1 | . 1 . . Extermination . | . . . . Reinforcement . | . . . . Assault . | . . . . Garrison . | . . . . Intercept . | . . . . Searches Triggered . | . . . . Construction Impeded . | . . . . Haulers Reinforced . | . . . . Active Scanning Responses . | . . . . Cargo Convoy Interrupts . | . . . . Stealth | -11 -10 -10 -10 --------- Run | Yrd Mat Min Exi Distress Signals . | . . . . Communications Jammed . | . . . . Distress Signals . | . . . . Times Spotted 18 | . 10 2 6 Peak Tracking Total 7 | . 3 2 7 Tactical Retreats 1 | . . . 1 Traps | -11 -10 -10 -10 ------- Run | Yrd Mat Min Exi Traps Triggered 1 | . 1 . . Indirectly . | . . . . Trap Hack Attempts . | . . . . Triggered . | . . . . Disarmed . | . . . . Reprogrammed . | . . . . Reused . | . . . . Traps Extracted . | . . . . Installed . | . . . . Triggered . | . . . . Machines | -11 -10 -10 -10 ---------- Run | Yrd Mat Min Exi Machines Disabled 9 | . 6 . 3 Max in Single Turn 3 | . 3 . 1 Machines Repaired . | . . . . Machines Dismantled . | . . . . Machines Sabotaged . | . . . . Overloaded Fab Kills . | . . . . Hacking | -11 -10 -10 -10 --------- Run | Yrd Mat Min Exi Machines Accessed 3 | . 3 . . Terminals 3 | . 3 . . Fabricators . | . . . . Repair Stations . | . . . . Recycling Units . | . . . . Scanalyzers . | . . . . Garrison Access . | . . . . Total Hacks 11 | . 11 . . Successful 7 | . 7 . . Failed 4 | . 4 . . Catastrophic . | . . . . Database Lockouts . | . . . . Manual 7 | . 7 . . Terminals 11 | . 11 . . Fabricators . | . . . . Repair Stations . | . . . . Recycling Units . | . . . . Scanalyzers . | . . . . Garrison Access . | . . . . Terminal Hacks 4 | . 4 . . Robot Analysis 2 | . 2 . . Maintenance Status 1 | . 1 . . Zone Layout 1 | . 1 . . Fabricator Hacks . | . . . . Repair Station Hacks . | . . . . Recycling Unit Hacks . | . . . . Scanalyzer . | . . . . Garrison Access Hacks . | . . . . Unauthorized Hacks 3 | . 3 . . Terminals 3 | . 3 . . Track 1 | . 1 . . Botnet 1 | . 1 . . Operators 1 | . 1 . . Fabricators . | . . . . Repair Stations . | . . . . Recycling Units . | . . . . Scanalyzers . | . . . . Garrison Access . | . . . . Data Cores Recovered . | . . . . Used . | . . . . Hacking Detections 3 | . 3 . . Full Trace Events . | . . . . Feedback Events . | . . . . Feedback Blocked . | . . . . Robot Schematics Acquired . | . . . . Robots Built . | . . . . Authchips . | . . . . Time . | . . . . Total Robot Build Rating . | . . . . Part Schematics Acquired . | . . . . Parts Built . | . . . . Authchips . | . . . . Time . | . . . . Total Part Build Rating . | . . . . Parts Repaired . | . . . . Time . | . . . . Parts Recycled . | . . . . Recycled Matter . | . . . . Retrieved Matter . | . . . . Retrieved Components . | . . . . Parts Scanalyzed . | . . . . Part Schematics Acquired . | . . . . Parts Damaged . | . . . . Bothacking | -11 -10 -10 -10 ------------ Run | Yrd Mat Min Exi Used RIF Installer . | . . . . Robots Hacked . | . . . . Non-combat . | . . . . Combat . | . . . . Robot Hacks Applied . | . . . . Relay Couplers Released . | . . . . Fabnet Peak Effective % . | . . . . Robots Rewired . | . . . . Allies Hacked . | . . . . Hacks Repelled . | . . . . Allies | -11 -10 -10 -10 -------- Run | Yrd Mat Min Exi Total Allies . | . . . . Largest Group . | . . . . Highest-Rated Group . | . . . . Highest-Rated Ally . | . . . . Total Orders . | . . . . Ally Attacks . | . . . . Total Damage . | . . . . Kills . | . . . . Allies Corrupted . | . . . . Allies Melted . | . . . . Intel | -11 -10 -10 -10 ------- Run | Yrd Mat Min Exi Robot Analysis Total 2 | . 2 . . Derelict Logs Recovered . | . . . . Drone Launches . | . . . . Drone Recoveries . | . . . . Exploration | -11 -10 -10 -10 ------------- Run | Yrd Mat Min Exi Turns Passed 766 | 80 334 171 181 Spaces Moved 516 | 52 245 134 85 Core 8 | 7 . . 1 Treads . | . . . . Legs 508 | 45 245 134 84 Wheels . | . . . . Hover . | . . . . Flight . | . . . . Fastest Speed 50 | 50 120 120 120 Average Speed 133 | 110 120 120 206 Slowest Speed 3350 | 120 120 120 3350 Overloaded Moves . | . . . . Propulsion Burnouts . | . . . . Robots Hopped . | . . . . Cave-ins Triggered . | . . . . Exploration Rate (%) 27 | 6 49 25 29 Regions Visited 3 Branch Regions 2 Pre-discovered Areas . | . . . . Known Exits Taken . | . . . . Unknown Exits Taken 3 | 1 1 1 . Scrap Searched . | . . . . Spaces Dug . | . . . . Terrain Destroyed 169 | . 109 35 25 Melee . | . . . . Projectile . | . . . . AOE 169 | . 109 35 25 Terrain Rammed . | . . . . Walls Destroyed . | . . . . Machines Disabled . | . . . . Actions | -11 -10 -10 -10 --------- Run | Yrd Mat Min Exi Total 568 | 63 265 139 101 Wait 1 | . 1 . . Move 513 | 51 244 133 85 Hop . | . . . . Pick Up 5 | 1 4 . . Fast Attach 10 | 6 2 . 2 Attach . | . . . . Detach . | . . . . Swap 4 | . 2 2 . Drop 4 | . 1 . 3 Fire 31 | 5 11 4 11 Melee . | . . . . Ram . | . . . . Kick . | . . . . Crush . | . . . . Escape Stasis . | . . . . Rewire . | . . . . Trap . | . . . . Miscellaneous . | . . . . Route ------- -11/Scrapyard -10/Materials (discovered 2 exits: [*Mat] / [*Min]) -10/Mines (discovered 2 exits: [*Mat] / [*Exi]) -10/Exiles History --------- Turn | Location | Event 4 | -11/Scrapyard | Discovered new exit (range 14) 81 | -11/Scrapyard | Entered Materials 204 | -10/Materials | Discovered new exit (range 10) 306 | -10/Materials | Build established: Mutant 380 | -10/Materials | Discovered new exit (range 8) 415 | -10/Materials | Entered Mines 527 | -10/Mines | Discovered new exit (range 8) 581 | -10/Mines | Deemed a non-threat by the Exiles lab entrance 581 | -10/Mines | Discovered new exit (range 5) 586 | -10/Mines | Entered Exiles 616 | -10/Exiles | Met 8R-AWN 642 | -10/Exiles | Met EX-HEX 660 | -10/Exiles | Attacked by the Exiles 672 | -10/Exiles | Destroyed EX-HEX 696 | -10/Exiles | Core integrity fell below 50% 726 | -10/Exiles | Lost 3 parts (1n2w) 759 | -10/Exiles | Core integrity fell below 20% 767 | -10/Exiles | Destroyed by 8R-AWN with 8R-AWN's Boregun Last Messages --------------- 00752_ Penetrated by HV Slug. 00752_ HV Slug penetrates Wall. 00754_ Penetrated by HV Slug. 00754_ HV Slug penetrates Wall. 00754_ Penetrated by HV Slug. 00754_ HV Slug penetrates Wall. 00756_ Penetrated by HV Slug. 00756_ HV Slug penetrates Wall. 00756_ Penetrated by HV Slug. 00756_ HV Slug penetrates Wall. 00758_ Penetrated by HV Slug. 00758_ HV Slug penetrates Wall. 00758_ Penetrated by HV Slug. 00758_ HV Slug penetrates Wall. 00763_ Penetrated by HV Slug. 00763_ HV Slug penetrates Wall. 00765_ Wall collapses. 00767_ Penetrated by HV Slug. 00767_ HV Slug penetrates Wall. 00767_ Penetrated by HV Slug. Map ----- +----------------------------------------------------+ | ?????????????????????????????????????????????????? | | ???????????????????????????????????##??####?#????? | | ???????????????????????????????#####"""""""""##??? | | ?????????????????????????????? " """ """"##?? | | ?????????????????????????????? "" " #?? | | ????????????????????????????? " """#?? | | ???????????????????????????? " "#?? | | ???????????????????????????? " "##? | | ???????????????????????????? ""## | | ???????????????????????????? """ | | ????????????????????????????? " | | ??????????????????????????????""" | | ??????????????????????????????#""" | | ????????????? ???????????????##"" | | ???????????? ??????????????#" | | ??????????? #??####???####" | | ??????????? ## ####"""] | | ?????????? """" ! | | ?????????? | | ?????????? | | ?????????? " % | | ?????????? " % "" " " | | ?????????? ""## ##""" " " "" " % " | | ??????????? ""##?# ######""" """##" # | | ???????????? """"????# g#????###""""### # | | ???????????? ?????????##@ ####???######??######## | | ???????????????????????#! "!#??????????????????? | | ???????????????????????# !#??????????????????? | | ???????????????????????# "#??????????????????? | | ???????????????????????;! "!"#??????????????????? | | ???????????????????????;;##;###??????????????????? | | ??????????????????????# ??##????????????????????? | | ??????????????????????# ????????????????????????? | | ??????????????????????# ????????????????????????? | | ??????????????????????## ????????????????????????? | | ???????????????????????##????????????????????????? | | ?????????????????????????????????????????????????? | | ?????????????????????????????????????????????????? | | ?????????????????????????????????????????????????? | | ?????????????????????????????????????????????????? | | ?????????????????????????????????????????????????? | | ?????????????????????????????????????????????????? | | ?????????????????????????????????????????????????? | | ?????????????????????????????????????????????????? | | ?????????????????????????????????????????????????? | | ?????????????????????????????????????????????????? | | ?????????????????????????????????????????????????? | | ?????????????????????????????????????????????????? | | ?????????????????????????????????????????????????? | | ?????????????????????????????????????????????????? | +----------------------------------------------------+ Best States ------------- Heat Dissipation 25 Energy Generation 10 Energy Capacity 250 Matter Stores 300 Matter Capacity 300 Sight Range 16 Terrain Scan Density 10 Utility Shielding 33 Evasion (%) 55 Targeting Accuracy 5 Offensive Hacking 7 Item Schematics ----------------- None Robot Schematics ------------------ None Fabricated ------------ Nothing Alien Tech Used ----------------- None Achievements -------------- Tank Challenges ------------ None Game ------ Seed ArmorArmageddonWings Manual? 0 Play Time 00:07:45 Cumulative 11.7 hours Start 2024.03.31 @ 20:29:40 End 2024.03.31 @ 20:35:36 Sessions 1 Manual Loads 0 Difficulty Rogue Special Mode None Game No. 35 Rogue 35 Adventurer 0 Explorer 0 Win Type - Total 1 Types 1/0/0/0/0/0/0/0/0 Lore% 22 Gallery% 23 Achievement% 23 Wizard Run 0 Options --------- Layout 0 ASCII 0 Keyboard 0 Movement Mouse Keybinds 0 Fullscreen 2 Font 24/Smallcaps Map View 38x25 Zoom Use 68% Tactical HUD 1 Map Filters NONE Filters NONE Steam 1 RUN: b7a66cd7-31b8-4022-899b-8d573c083908